bitfinex/quotes_ETHUSD_20250620
["timestamp","ask_amount","ask_price","bid_price","bid_amount"]
[1750434712935,20.54609911,2497.1,2497.0,4.00480576]
[1750434713624,20.54609911,2497.1,2497.0,3.48379159]
[1750434713828,20.54609911,2497.1,2496.9,4.00484187]
[1750434714027,0.59775512,2497.0,2496.9,4.00484187]
[1750434714452,0.59777415,2497.0,2496.9,4.00484187]
[1750434715008,0.99411769,2497.0,2496.9,4.00484187]
[1750434715213,7.74813376,2497.0,2496.9,4.00484187]
[1750434715408,7.74812197,2497.0,2496.9,4.00484187]
[1750434715824,7.74814836,2497.0,2496.9,4.00484187]
[1750434716346,7.80974836,2497.0,2496.9,4.00484187]
[1750434716567,7.80972793,2497.0,2496.9,4.00484187]
[1750434716917,7.74812793,2497.0,2496.9,4.00484187]
[1750434717457,7.52421611,2497.0,2496.9,4.00484187]
[1750434717756,7.74802834,2497.0,2496.9,4.00484187]
[1750434718415,7.74805473,2497.0,2496.9,4.00484187]
[1750434718646,7.747965,2497.0,2496.9,4.00484187]
[1750434719247,7.80953335,2497.0,2496.9,4.00484187]
[1750434720222,9.59048237,2497.0,2496.9,4.00496615]
[1750434720549,9.59048339,2497.0,2496.9,4.00496615]
[1750434720771,9.2165872,2497.0,2496.9,4.00496615]
[1750434720925,9.59051256,2497.0,2496.9,4.00496615]
[1750434721421,0.8306,2496.8,2496.0,0.7829]
[1750434721625,10.0616,2496.4,2496.3,4.00581834]
[1750434721825,17.39634018,2496.4,2496.3,4.00581834]
[1750434722537,17.33474018,2496.4,2496.3,4.00581834]
[1750434723162,16.96081482,2496.4,2496.3,4.00581834]
[1750434723338,17.33452752,2496.4,2496.3,4.00581834]
[1750434723739,0.59711471,2496.4,2496.3,4.00581834]
[1750434723952,0.59711471,2496.4,2496.3,5.41967819]
[1750434723953,0.37351598,2496.4,2496.3,5.41967819]
[1750434724275,0.37351598,2496.4,2496.3,5.36057819]
[1750434724432,0.37351598,2496.4,2496.3,4.83801834]
[1750434724964,0.37351598,2496.4,2496.3,4.00581834]
[1750434725263,7.6302,2496.7,2496.5,4.00551977]
[1750434725469,0.65971451,2496.6,2496.5,4.00551977]
[1750434726668,0.0616,2496.3,2496.0,4.00639646]
[1750434726974,10.0,2496.1,2496.0,4.00641025]
[1750434727268,10.59812472,2496.1,2496.0,4.00641025]
[1750434727428,0.59812472,2496.1,2496.0,4.00641025]
[1750434727629,7.34367342,2496.1,2496.0,4.00641025]
[1750434727825,0.59767342,2496.1,2496.0,4.00641025]
[1750434728056,0.59766,2496.1,2496.0,4.00641025]
[1750434728276,0.59738159,2496.1,2496.0,4.00641025]
[1750434729072,6.744,2496.3,2496.2,4.00608925]
[1750434729274,0.59742901,2496.3,2496.2,4.00608925]
[1750434729468,0.37354319,2496.3,2496.2,4.04614527]
[1750434729812,10.0,2496.5,2496.4,4.0057683]
[1750434729982,12.327983,2496.5,2496.4,4.0057683]
[1750434730296,10.597283,2496.5,2496.4,4.0057683]
[1750434730853,10.37346885,2496.5,2496.4,4.0057683]
[1750434731184,0.7799,2496.3,2495.6,0.7824]
[1750434731385,10.0,2496.1,2496.0,4.00630485]
[1750434731590,10.59721986,2496.1,2496.0,4.00630485]
[1750434732005,10.37346885,2496.1,2496.0,4.00630485]
[1750434732154,10.37353119,2496.1,2496.0,4.00630485]
[1750434732496,10.37353013,2496.1,2496.0,4.00630485]
[1750434733371,10.0,2496.1,2496.0,4.00630485]
[1750434733572,10.37354298,2496.1,2496.0,4.00630485]
[1750434734202,10.0,2496.1,2496.0,4.00630485]
[1750434734773,10.7799,2496.5,2496.4,4.0057683]
[1750434735009,13.06554121,2496.5,2496.4,4.0057683]
[1750434735217,17.33410332,2496.5,2496.4,4.0057683]
[1750434735515,0.37341021,2496.5,2496.4,4.0057683]
[1750434735687,7.11041021,2496.5,2496.4,4.0057683]
[1750434735872,0.37341021,2496.5,2496.4,4.0057683]
[1750434736203,0.8165,2496.7,2496.5,4.00560785]
[1750434736408,17.1650415,2496.6,2496.5,4.00560785]
[1750434736607,0.0565,2496.5,2496.4,4.00569339]
[1750434736811,0.0565,2496.5,2496.1,4.00623831]
[1750434736812,0.0565,2496.3,2496.1,4.00623831]
[1750434736977,16.735,2496.2,2496.1,4.00623831]
[1750434737426,16.7915,2496.2,2496.1,4.00623831]
[1750434737886,17.16521367,2496.2,2496.1,4.00623831]
[1750434738211,0.7907,2496.1,2495.8,4.00665285]
[1750434738505,0.0565,2495.8,2495.7,4.00682554]
[1750434738713,0.0565,2495.8,2495.6,4.00705117]
[1750434738911,0.0565,2495.7,2495.6,4.0070504]
[1750434739412,0.0565,2495.6,2495.4,4.22447903]
[1750434739612,16.7885,2495.6,2495.5,4.00721298]
[1750434740017,10.0,2495.6,2495.5,4.00721298]
[1750434740179,10.0,2495.6,2495.5,4.77241298]
[1750434740383,10.0,2495.6,2495.5,4.00721298]
[1750434740791,16.7875,2495.6,2495.5,4.00721298]
[1750434740997,10.0,2495.6,2495.5,4.00721298]
[1750434741173,16.732,2495.6,2495.5,4.00721298]
[1750434741917,16.7885,2495.6,2495.5,4.00721298]
[1750434742090,10.0,2495.6,2495.5,4.00721298]
[1750434742413,1.48503999,2496.2,2495.6,0.8157]
[1750434742612,14.70813606,2496.3,2496.0,4.00630777]
[1750434742777,14.70813606,2496.3,2495.6,0.8157]
[1750434742778,16.7875,2496.2,2496.1,4.00610144]
[1750434743416,17.16109485,2496.2,2496.1,4.00610144]
[1750434743620,20.46391328,2496.2,2495.6,0.8157]
[1750434743925,20.14681956,2496.2,2496.1,4.00624974]
[1750434744094,20.52041245,2496.2,2496.1,4.00624974]
[1750434744618,20.52049567,2496.2,2496.1,4.00624974]
[1750434744817,20.52049138,2496.2,2496.1,4.00624974]
[1750434744976,0.37367182,2496.2,2496.1,4.00624974]
[1750434745181,10.8037,2496.3,2496.2,4.00608925]
[1750434745380,17.9608498,2496.3,2496.2,4.00608925]
[1750434746022,18.18436607,2496.3,2496.2,4.00608925]
[1750434746317,17.9608498,2496.3,2496.2,4.00608925]
[1750434746519,17.10065754,2496.3,2496.2,4.00608925]
[1750434746739,1.7804647,2496.4,2496.3,4.00592877]
[1750434747433,1.7804647,2496.4,2496.3,5.28321555]
[1750434748085,1.7804647,2496.4,2496.3,4.00592877]
[1750434749395,6.724,2496.5,2496.4,4.0057683]
[1750434749721,16.724,2496.5,2496.4,4.0057683]
[1750434751691,16.721,2496.5,2496.4,4.0057683]
[1750434752728,6.721,2496.5,2496.4,4.0057683]
[1750434753237,2.98704354,2497.0,2496.6,4.00541141]
[1750434753441,9.05610251,2496.9,2496.8,4.00505633]
[1750434753823,9.05610425,2496.9,2496.8,4.00505633]
[1750434754333,9.0560995,2496.9,2496.8,4.00505633]
[1750434754571,2.28164256,2496.9,2496.8,4.00505633]
[1750434754824,9.05614256,2496.9,2496.8,4.00505633]
[1750434754996,9.05631471,2496.9,2496.8,4.00505633]
[1750434755410,0.22397755,2496.9,2496.8,4.00505633]
[1750434755649,7.31629634,2496.9,2496.8,4.00505633]
[1750434756134,17.31629523,2496.9,2496.8,4.00505633]
[1750434756335,16.718,2496.9,2496.8,4.00505633]
[1750434756693,10.0,2496.9,2496.8,4.00505633]
[1750434756894,16.718,2496.9,2496.8,4.00505633]
[1750434757117,10.0,2496.9,2496.8,4.00505633]
[1750434757732,6.718,2496.9,2496.8,4.00505633]
[1750434757934,0.39634354,2497.0,2496.8,4.00505633]
[1750434757935,0.39634354,2497.0,2496.9,4.00496615]
[1750434758230,8.0265,2497.3,2497.2,4.00448502]
[1750434758450,21.87418315,2497.3,2497.2,4.00448502]
[1750434758652,0.99072465,2497.3,2497.2,4.00448502]
[1750434758857,0.22399745,2497.3,2497.2,4.00448502]
[1750434759027,0.8038,2497.7,2497.6,4.00384368]
[1750434759233,6.94202905,2497.7,2497.6,4.00370032]
[1750434759431,0.854,2497.5,2496.9,0.7802]
[1750434759624,10.0,2497.4,2497.2,4.00433021]
[1750434759955,6.7783,2497.3,2496.6,4.0054474]
[1750434760159,0.0603,2497.1,2496.9,4.00494688]
[1750434760354,16.718,2497.1,2497.0,4.00480576]
[1750434763149,17.5403,2497.1,2497.0,4.00480576]
[1750434763547,16.718,2497.1,2497.0,4.00480576]
[1750434764344,16.718,2497.1,2496.8,4.00504514]
[1750434764345,24.72160305,2497.1,2496.8,4.00504514]
[1750434764552,24.72160305,2497.1,2496.7,4.00516133]
[1750434764553,10.0,2496.9,2496.7,4.00516133]
[1750434764854,10.0603,2496.7,2496.6,4.00544305]
[1750434766655,6.716,2496.8,2496.7,4.00528697]
[1750434766858,10.0,2497.0,2496.7,4.00524007]
[1750434767037,16.716,2496.9,2496.8,4.00500485]
[1750434767362,16.716,2496.9,2496.6,4.00538531]
[1750434767363,16.716,2496.9,2496.7,4.00520126]
[1750434767660,16.7763,2496.9,2496.8,4.00512656]
[1750434768261,16.716,2496.9,2496.7,4.00521724]
[1750434768448,0.0603,2496.8,2496.7,4.00528697]
[1750434768846,16.716,2496.9,2496.8,4.00512656]
[1750434769671,16.7763,2496.9,2496.8,4.00512656]
[1750434770529,0.0603,2497.4,2497.0,4.0046529]
[1750434770748,10.0,2497.2,2496.8,0.8209]
[1750434770940,0.0603,2497.4,2496.8,4.82597827]
[1750434771156,6.716,2497.3,2497.2,4.00433376]
[1750434771679,0.0603,2497.1,2496.9,4.0048807]
[1750434771827,10.0,2496.9,2496.8,4.00506141]
[1750434772032,10.28443061,2496.9,2496.8,4.00506141]
[1750434772558,10.28447151,2496.9,2496.8,4.00506141]
[1750434772760,10.2844693,2496.9,2496.8,4.00506141]
[1750434774058,10.2241693,2496.9,2496.8,4.00506141]
[1750434774260,10.22417113,2496.9,2496.8,4.00506141]
[1750434776840,12.62617113,2496.9,2496.8,4.00506141]
[1750434777034,10.22417113,2496.9,2496.8,4.00506141]
[1750434777381,11.92421824,2496.9,2496.8,4.00506141]
[1750434777544,11.98451824,2496.9,2496.8,4.00506141]
[1750434778347,10.0603,2496.9,2496.8,4.00506141]
[1750434778747,10.0,2496.9,2496.8,4.00506141]
[1750434780280,3.2128,2497.3,2497.1,4.00464538]
[1750434780482,16.715,2497.2,2497.1,4.00464538]
[1750434780690,18.95391,2497.2,2497.0,4.00470754]
[1750434781055,18.89361,2497.2,2496.9,4.00489694]
[1750434781258,10.0603,2496.9,2496.8,4.00509528]
[1750434781459,16.7753,2496.9,2496.8,4.00509528]
[1750434782515,16.715,2496.9,2496.8,4.00509528]
[1750434783454,6.715,2496.9,2496.8,4.00509528]
[1750434783658,12.17861,2497.2,2496.9,4.00493113]
[1750434783659,16.715,2497.0,2496.9,4.00493113]
[1750434783958,10.0,2496.9,2496.8,4.00512045]
[1750434784154,6.715,2497.0,2496.8,4.00512045]
[1750434784401,0.0603,2496.9,2496.7,4.0051985]
[1750434784910,0.22466605,2496.8,2496.7,4.0051985]
[1750434785257,0.28496605,2496.8,2496.7,4.0051985]
[1750434785772,0.22466605,2496.8,2496.7,4.0051985]
[1750434786177,6.93966605,2496.8,2496.7,4.0051985]
[1750434786497,6.93966605,2496.8,2496.5,4.0054636]
[1750434786498,0.0603,2496.6,2496.5,4.0054636]
[1750434786666,0.28496605,2496.7,2496.6,4.0054474]
[1750434787089,0.22466605,2496.7,2496.6,4.0054474]
[1750434787675,10.0,2496.9,2496.8,4.00512656]
[1750434787984,10.28521532,2496.9,2496.7,4.00519886]
[1750434788188,10.28521532,2496.9,2496.6,4.0054474]
[1750434788189,10.0603,2497.1,2496.8,4.00498846]
[1750434788526,10.0,2496.9,2496.8,4.00498846]
[1750434788704,10.22492106,2496.9,2496.7,4.00521426]
[1750434788890,16.93992106,2496.8,2496.7,4.00521426]
[1750434789297,10.22492106,2496.8,2496.7,4.00521426]
[1750434790001,16.93992106,2496.8,2496.7,4.00521426]
[1750434791217,16.93994031,2496.8,2496.7,4.00521426]
[1750434792419,16.93994031,2496.8,2496.5,4.00546757]
[1750434792575,10.0,2496.6,2496.5,4.00546757]
[1750434792778,16.99604031,2496.6,2496.5,4.00546757]
[1750434793701,16.93894031,2496.6,2496.5,4.00546757]
[1750434794522,16.9389647,2496.6,2496.5,4.00546757]
[1750434795116,10.2249647,2496.6,2496.5,4.00546757]
[1750434795297,6.9389647,2496.6,2496.5,4.00546757]
[1750434795618,0.2249647,2496.6,2496.5,4.88658037]
[1750434795819,16.9389647,2496.6,2496.5,4.92663258]
[1750434796046,16.9389647,2496.6,2496.5,4.94418037]
[1750434796411,10.2249647,2496.6,2496.5,4.94418037]
[1750434797430,10.2249647,2496.6,2496.5,4.88658037]
[1750434797927,10.22508858,2496.6,2496.5,4.88658037]
[1750434798903,16.93908858,2496.6,2496.5,4.88658037]
[1750434799299,16.93908858,2496.6,2496.5,4.00546757]
[1750434799807,10.22508858,2496.6,2496.5,4.06306757]
[1750434800204,10.22508858,2496.6,2496.5,4.00546757]
[1750434801139,16.93797574,2496.6,2496.5,4.00546757]
[1750434801524,10.22497574,2496.6,2496.5,4.00546757]
[1750434801841,16.93797574,2496.6,2496.5,4.77556757]
[1750434802138,10.22497574,2496.6,2496.5,5.7513539]
[1750434802338,10.22497574,2496.6,2496.5,5.71130037]
[1750434802543,0.8047,2497.4,2497.2,4.00436847]
[1750434802833,20.04189771,2497.7,2497.1,4.00461886]
[1750434802834,9.68627968,2497.6,2497.1,4.00461886]
[1750434803035,10.0,2497.4,2497.3,4.00422583]
[1750434803214,19.62917968,2497.4,2497.2,4.00439843]
[1750434803413,0.0571,2497.2,2497.1,4.00454059]
[1750434803600,9.68627968,2497.2,2497.1,4.00454059]
[1750434804330,9.62917968,2497.2,2497.1,4.00454059]
[1750434804837,16.713,2497.3,2497.2,4.00448502]
[1750434805037,16.7701,2497.3,2497.2,4.00448502]
[1750434805226,16.713,2497.3,2497.1,4.00456469]
[1750434805540,0.0571,2497.2,2497.1,4.00456469]
[1750434807443,16.713,2497.3,2497.2,4.00448502]
[1750434807639,16.7701,2497.3,2497.2,4.00448502]
[1750434808148,17.4991,2497.3,2497.0,4.00465714]
[1750434808347,12.4591,2497.2,2496.5,0.8299]
[1750434808653,12.4591,2497.2,2496.1,0.8299]
[1750434808654,0.0571,2496.9,2496.1,0.8299]
[1750434808853,0.0571,2496.6,2496.3,4.00592497]
[1750434809154,10.0571,2496.4,2496.3,4.00592497]
[1750434809313,10.0571,2496.6,2496.4,4.00570652]
[1750434809634,16.99280916,2496.5,2496.4,4.00570652]
[1750434809832,16.93570916,2496.5,2496.4,4.00570652]
[1750434810048,10.22470916,2496.5,2496.4,4.80686967]
[1750434810249,10.0,2496.5,2496.4,4.80686967]
[1750434810447,10.0,2496.5,2496.4,4.00570652]
[1750434810840,16.711,2496.5,2496.4,4.00570652]
[1750434811308,6.711,2496.5,2496.4,4.0057683]
[1750434811514,6.7681,2496.5,2496.4,4.0057683]
[1750434811840,6.99286482,2496.5,2496.4,4.0057683]
[1750434812350,6.7681,2496.5,2496.4,4.0057683]
[1750434812554,6.99286506,2496.5,2496.4,4.0057683]
[1750434813025,6.99288525,2496.5,2496.4,4.0057683]
[1750434813225,6.7681,2496.5,2496.4,4.0057683]
[1750434813753,0.8312,2496.7,2495.9,0.832]
[1750434813754,0.8312,2496.7,2496.5,4.00552152]
[1750434813955,7.3676661,2496.6,2496.5,4.00552152]
[1750434814143,7.36765974,2496.6,2496.5,4.00552152]
[1750434814451,16.99284208,2496.6,2496.5,4.00552152]
[1750434814649,10.59954041,2496.6,2496.5,4.00552152]
[1750434814949,16.99284208,2496.6,2496.5,4.00552152]
[1750434815135,17.36764239,2496.6,2496.5,4.00552152]
[1750434815310,10.65664239,2496.6,2496.5,4.00552152]
[1750434815512,17.36762903,2496.6,2496.5,4.00552152]
[1750434815743,16.711,2496.6,2496.5,4.00552152]
[1750434815948,17.31050383,2496.6,2496.5,4.00552152]
[1750434816741,0.787,2497.1,2496.5,0.80112841]
[1750434817012,7.36647945,2497.0,2496.9,4.00496615]
[1750434817530,7.36645796,2497.0,2496.9,4.00496615]
[1750434817834,0.59935796,2497.0,2496.9,4.00496615]
[1750434818039,0.59935259,2497.0,2496.9,4.00496615]
[1750434818342,7.30935259,2497.0,2496.9,4.00496615]
[1750434818574,7.36965259,2497.0,2496.9,4.00496615]
[1750434818743,0.0603,2496.9,2496.8,4.00509559]
[1750434818950,0.65960637,2496.9,2496.8,4.00509559]
[1750434819242,0.59930637,2496.9,2496.8,4.00509559]
[1750434819409,7.30930637,2496.9,2496.8,4.00509559]
[1750434819812,7.30931101,2496.9,2496.8,4.00509559]
[1750434820545,7.36960665,2496.9,2496.8,4.00509559]
[1750434820844,10.0,2496.8,2496.7,4.00527347]
[1750434821068,11.47810665,2496.8,2496.7,4.00527347]
[1750434821210,11.47815019,2496.8,2496.6,4.005359]
[1750434821415,16.7703,2496.7,2496.6,4.005359]
[1750434821850,19.1723,2496.7,2496.6,4.005359]
[1750434822047,16.7703,2496.7,2496.6,4.005359]
[1750434822452,16.71,2496.7,2496.6,4.005359]
[1750434822617,10.0,2496.7,2496.6,4.8064482]
[1750434822822,16.709,2496.7,2496.6,4.005359]
[1750434823022,10.0,2496.7,2496.6,4.005359]
[1750434824857,20.23686249,2496.7,2496.6,4.0054474]
[1750434825157,19.86217526,2496.7,2496.6,4.0054474]
[1750434825354,10.2248051,2496.7,2496.6,4.0054474]
[1750434825532,10.22479624,2496.7,2496.6,4.0054474]
[1750434826069,10.0,2496.7,2496.6,4.0054474]
[1750434826254,16.9338018,2496.7,2496.6,4.0054474]
[1750434827260,16.708,2496.7,2496.6,4.0054474]
[1750434829337,16.7683,2496.7,2496.6,4.0054474]
[1750434830060,16.708,2496.7,2496.6,4.0054474]
[1750434830567,16.7683,2496.7,2496.6,4.0054474]
[1750434831268,16.708,2496.7,2496.6,4.0054474]
[1750434833464,10.0,2496.7,2496.6,5.70779609]
[1750434833627,10.0,2496.7,2496.6,5.70779377]
[1750434833832,6.707,2497.1,2496.6,5.66774479]
[1750434834058,9.69767068,2497.4,2497.2,4.00438859]
[1750434834256,17.30634453,2497.3,2497.2,4.00438859]
[1750434834428,10.5993894,2497.3,2497.2,4.00438859]
[1750434834629,7.30641434,2497.3,2497.2,4.00438859]
[1750434834847,17.3063789,2497.3,2497.2,4.00438859]
[1750434835246,10.59938981,2497.3,2497.2,4.00438859]
[1750434835434,17.14191914,2497.3,2497.2,4.00438859]
[1750434835630,0.0603,2497.2,2496.7,0.8129]
[1750434835869,0.59937596,2497.2,2497.0,4.00468042]
[1750434836166,10.0,2497.0,2496.9,4.00496615]
[1750434838680,10.0,2497.2,2496.8,4.00501794]
[1750434838832,10.0,2496.9,2496.6,4.00532216]
[1750434839038,10.0,2496.7,2496.5,4.00548835]
[1750434839271,16.99012293,2496.6,2496.5,4.00548835]
[1750434839475,16.92982293,2496.6,2496.5,4.00548835]
[1750434840049,16.7653,2496.6,2496.4,4.00569515]
[1750434840263,16.7653,2496.6,2495.5,4.00718856]
[1750434840264,10.0,2496.4,2495.9,4.77991923]
[1750434840576,0.0603,2496.2,2495.5,4.00721298]
[1750434840736,20.63446981,2496.1,2495.9,4.00642388]
[1750434840936,0.0603,2496.0,2495.8,4.00672077]
[1750434841136,6.705,2495.9,2495.8,4.00672077]
[1750434841370,16.705,2495.9,2495.8,4.00672077]
[1750434844478,10.0603,2495.8,2495.5,4.00709653]
[1750434844663,10.0603,2495.6,2495.5,4.00721298]
[1750434844881,10.28449457,2495.6,2495.4,4.22443118]
[1750434845045,13.86916981,2495.8,2495.4,0.2171198]
[1750434845046,17.589,2495.5,2495.4,0.2171198]
[1750434845247,32.93061679,2495.5,2495.4,0.2171198]
[1750434845443,37.16204887,2495.5,2495.4,0.2171198]
[1750434845987,26.44983589,2495.5,2495.4,0.2171198]
[1750434846146,34.94783589,2495.5,2495.4,0.2171198]
[1750434846341,38.95504887,2495.5,2495.4,0.2171198]
[1750434846549,34.72361679,2495.5,2495.4,0.2171198]
[1750434846852,36.15621863,2495.5,2495.4,0.2171198]
[1750434847048,27.65821863,2495.5,2495.4,0.2171198]
[1750434847264,36.15721863,2495.5,2495.4,0.2171198]
[1750434847465,36.15723298,2495.5,2495.4,0.2171198]
[1750434847964,40.16442394,2495.5,2495.4,0.2171198]
[1750434848377,36.15721096,2495.5,2495.4,0.2171198]
[1750434849342,40.71442394,2495.5,2495.4,0.2171198]
[1750434849546,41.08699365,2495.5,2495.4,0.2171198]
[1750434850287,41.08695208,2495.5,2495.4,0.2171198]
[1750434850644,0.059,2495.1,2494.7,4.00840853]
[1750434850983,10.059,2494.9,2494.8,4.00833734]
[1750434851188,11.22726771,2494.9,2494.8,4.00833734]
[1750434851386,12.05766771,2494.9,2494.3,4.00914084]
[1750434851687,10.0,2494.7,2494.5,4.0087334]
[1750434851890,7.93253023,2494.6,2494.5,4.0088194]
[1750434852098,7.93253023,2494.6,2494.2,4.24530689]
[1750434852099,7.99153023,2494.6,2494.2,0.23605903]
[1750434852430,11.22653023,2494.5,2494.4,4.00883254]
[1750434852568,11.22653023,2494.5,2494.3,4.00914084]
[1750434852569,11.28553023,2494.5,2494.3,4.00905122]
[1750434852906,10.0,2494.3,2494.2,4.24527732]
[1750434853110,1.25272738,2494.3,2494.2,4.24527732]
[1750434853272,11.31172738,2494.3,2494.2,4.2453606]
[1750434853472,12.14212738,2494.3,2494.2,4.2453606]
[1750434853821,17.95772738,2494.3,2494.2,4.2453606]
[1750434854116,18.01672738,2494.3,2494.2,4.2453606]
[1750434854331,18.01672738,2494.3,2494.2,0.23605903]
[1750434854486,24.2499152,2494.3,2494.2,0.23605903]
[1750434854669,20.24077436,2494.3,2494.2,0.23605903]
[1750434854869,24.2499152,2494.3,2494.2,0.23605903]
[1750434855132,22.03377436,2494.3,2494.2,0.23605903]
[1750434855276,23.63841448,2494.3,2494.2,0.23605903]
[1750434855626,23.63941448,2494.3,2494.2,0.23605903]
[1750434855825,15.14041448,2494.3,2494.2,4.2453606]
[1750434855976,20.3739675,2494.3,2494.2,4.2453606]
[1750434856171,20.3739675,2494.3,2494.2,0.23605903]
[1750434856529,2.8573675,2494.3,2494.2,4.2453606]
[1750434856709,2.8573675,2494.3,2494.2,5.12044818]
[1750434856893,1.25272738,2494.3,2494.2,6.91444818]
[1750434857079,1.25272738,2494.3,2494.2,8.00683219]
[1750434857274,1.25272738,2494.3,2494.2,7.96674461]
[1750434857520,0.8244,2495.2,2494.9,4.00817668]
[1750434857688,7.95786535,2495.1,2495.0,4.00801603]
[1750434857887,17.95786535,2495.1,2495.0,4.00801603]
[1750434858189,0.8237,2495.0,2494.2,0.23605903]
[1750434858406,23.92816981,2494.3,2494.2,0.23605903]
[1750434858609,31.88603516,2494.3,2494.2,0.23605903]
[1750434859774,11.30986535,2494.3,2494.2,4.2453606]
[1750434859974,18.01686535,2494.3,2494.2,0.23605903]
[1750434860195,18.01686535,2494.3,2493.6,0.05]
[1750434860196,4.0097036,2494.0,2493.6,0.05]
[1750434860410,10.8002,2493.7,2493.6,0.05]
[1750434860578,18.74987474,2493.7,2493.6,4.06026628]
[1750434860780,18.74987474,2493.7,2493.6,0.05]
[1750434862091,22.7599802,2493.7,2493.6,0.05]
[1750434862290,20.7698018,2493.7,2493.6,0.05]
[1750434862812,24.77990726,2493.7,2493.6,0.05]
[1750434863021,24.77990726,2493.7,2493.0,1.032583]
[1750434863022,0.059,2493.4,2493.0,1.032583]
[1750434863320,0.059,2493.4,2492.6,4.01174829]
[1750434863321,0.7928,2492.8,2492.6,4.01174829]
[1750434863516,0.7928,2492.8,2491.7,3.35634633]
[1750434863517,10.0,2492.6,2491.7,3.35634633]
[1750434863740,10.0,2492.4,2492.3,4.01235806]
[1750434863941,11.26062804,2492.4,2492.3,4.01235806]
[1750434864151,7.94162804,2492.4,2492.3,4.01235806]
[1750434864518,21.86979785,2492.4,2491.8,4.34874291]
[1750434864719,21.86979785,2492.4,2491.7,3.69137165]
[1750434864720,10.8026,2491.9,2491.7,0.33502532]
[1750434865057,10.059,2491.7,2491.6,4.01348531]
[1750434865346,25.10538547,2491.7,2491.6,4.01348531]
[1750434865499,11.29521566,2491.7,2491.2,4.01412973]
[1750434865703,0.8026,2491.9,2491.0,1.0998]
[1750434865704,13.92816981,2491.4,2491.0,1.0998]
[1750434865903,0.8759,2491.4,2491.2,4.01406636]
[1750434866131,16.809,2491.3,2491.2,3.96406636]
[1750434866340,10.0,2491.2,2491.1,4.01424932]
[1750434866527,1.18991681,2491.2,2491.0,5.11415677]
[1750434866732,59.92974048,2491.1,2491.0,1.00581572]
[1750434866932,0.0539,2490.5,2490.4,0.2171198]
[1750434867118,34.07357964,2490.5,2490.4,0.2171198]
[1750434867317,32.03300146,2490.5,2490.4,0.2171198]
[1750434867520,13.7736798,2490.5,2490.4,4.232539]
[1750434867720,20.6155798,2490.5,2490.4,0.2171198]
[1750434868279,12.0265798,2490.5,2490.4,0.2171198]
[1750434868431,11.9726798,2490.5,2490.4,0.2171198]
[1750434868757,17.9862798,2490.5,2490.4,4.232539]
[1750434868921,7.9882798,2490.5,2490.4,5.1430424]
[1750434869121,1.1882798,2490.5,2490.4,5.1430424]
[1750434869324,10.0,2490.7,2490.6,4.01509676]
[1750434869525,11.22081225,2490.7,2490.6,4.01509676]
[1750434870112,11.22081225,2490.7,2490.4,0.2171198]
[1750434870330,10.0,2490.5,2490.4,4.23241092]
[1750434870531,8.04224994,2490.5,2490.4,4.23241092]
[1750434871164,8.04224994,2490.5,2490.4,4.232539]
[1750434871376,8.04224994,2490.5,2490.4,4.294639]
[1750434871377,11.24124994,2490.5,2490.4,4.294639]
[1750434872874,11.24124994,2490.5,2490.4,4.232539]
[1750434873367,11.24124994,2490.5,2490.4,0.2171198]
[1750434873568,13.85797493,2490.5,2490.4,0.2171198]
[1750434873773,18.42323291,2490.5,2490.4,0.2171198]
[1750434873935,13.59537493,2490.5,2490.4,0.2171198]
[1750434874134,1.24124994,2490.5,2490.4,4.294639]
[1750434874954,6.846,2490.8,2490.7,4.01493556]
[1750434875154,8.05885508,2490.8,2490.7,4.01493556]
[1750434875484,1.21285508,2490.8,2490.7,4.07703556]
[1750434875894,1.21285508,2490.8,2490.7,6.72839611]
[1750434876109,1.21285508,2490.8,2490.7,7.51134879]
[1750434876272,10.0,2491.5,2491.4,4.01380749]
[1750434876454,0.14675779,2491.5,2491.4,4.01380749]
[1750434876654,17.00275779,2491.5,2491.4,4.01380749]
[1750434877056,10.0,2491.4,2491.0,0.0621]
[1750434877260,1.37415531,2491.3,2491.2,4.01412973]
[1750434877571,1.37415531,2491.3,2491.1,4.01418062]
[1750434877780,8.25011738,2491.2,2490.7,0.8231]
[1750434878083,8.2517393,2491.1,2491.0,4.01445202]
[1750434878284,8.65180998,2491.1,2491.0,4.01445202]
[1750434878484,0.8196,2491.0,2490.8,4.01464749]
[1750434878714,8.12725168,2491.1,2491.0,4.01445202]
[1750434878863,7.26207068,2491.1,2490.8,4.01472284]
[1750434879061,7.26207068,2491.1,2491.0,4.01445202]
[1750434879298,1.65395105,2491.1,2491.0,4.01445202]
[1750434879809,10.0,2491.0,2490.9,4.01452456]
[1750434879962,1.17637628,2491.0,2490.9,4.01452456]
[1750434880410,1.17637628,2491.0,2490.8,4.0147564]
[1750434880411,2.01992098,2491.0,2490.4,0.2171198]
[1750434880677,1.17637628,2490.9,2490.8,4.01477436]
[1750434881384,18.03037628,2490.9,2490.8,4.01477436]
[1750434881588,8.03037628,2490.9,2490.6,4.0149638]
[1750434881887,1.18808525,2490.8,2490.7,4.07643112]
[1750434882093,16.857,2491.0,2490.9,4.07621319]
[1750434882413,11.18808525,2491.0,2490.9,4.07621319]
[1750434884499,1.18808525,2491.0,2490.9,4.07621319]
[1750434884825,10.0,2492.0,2491.2,0.0616]
[1750434885016,0.7751,2492.1,2491.2,0.0616]
[1750434885017,11.94565112,2491.9,2491.2,0.0616]
[1750434885209,11.94565112,2491.9,2491.5,4.01348988]
[1750434885210,11.24644144,2491.8,2491.5,4.01348988]
[1750434885387,11.24644144,2491.8,2491.2,0.0616]
[1750434885388,1.24644144,2491.7,2491.6,4.01340391]
[1750434885790,1.24644144,2491.7,2491.5,4.01357036]
[1750434886102,10.0,2491.6,2491.5,4.01357036]
[1750434886309,18.07163037,2491.6,2491.5,4.01357036]
[1750434886492,18.06963037,2491.6,2491.5,4.07517036]
[1750434887080,11.21563037,2491.6,2491.5,4.07517036]
[1750434887304,18.06563037,2491.6,2491.5,4.01357036]
[1750434888384,11.21563037,2491.6,2491.5,4.07517036]
[1750434889840,10.0,2491.5,2491.4,4.77223101]
[1750434890054,1.20436958,2491.5,2491.4,4.01373101]
[1750434890349,1.20436958,2491.5,2491.2,4.0756637]
[1750434890553,1.20436958,2491.5,2491.4,4.01380749]
[1750434891111,1.20436958,2491.5,2491.4,4.07540749]
[1750434891360,1.20436958,2491.5,2491.4,4.88434167]
[1750434892048,6.842,2492.0,2491.9,4.01300212]
[1750434892210,6.842,2492.0,2491.9,4.07460212]
[1750434892211,8.6263617,2492.0,2491.9,4.07460212]
[1750434892408,8.62636126,2492.0,2491.9,4.01300212]
[1750434892610,10.0,2491.9,2491.8,4.01312833]